bitfinex-derivatives/quotes_ETHF0:USTF0_20250804
["timestamp","ask_amount","ask_price","bid_price","bid_amount"]
[1754268459659,1.0,3535.0,3534.6,2.7562]
[1754268459855,1.0,3535.0,3534.9,2.0016]
[1754268460357,1.0,3535.0,3534.9,5.2094]
[1754268460865,3.2078,3535.5,3534.9,4.4079]
[1754268461159,4.1906,3535.5,3535.4,1.3194]
[1754268461362,4.9799,3535.5,3535.4,1.3194]
[1754268461550,3.8057,3535.5,3535.4,1.3194]
[1754268461756,0.5979,3535.5,3535.4,1.3194]
[1754268462454,0.08,3535.7,3535.5,0.6159]
[1754268462661,0.6779,3535.7,3535.6,1.3194]
[1754268462860,0.08,3535.7,3535.6,1.3194]
[1754268463161,0.6779,3535.7,3535.6,1.3194]
[1754268463563,0.08,3535.7,3535.6,1.5101]
[1754268463763,0.6728,3535.7,3535.6,0.3983]
[1754268463960,2.2943,3535.4,3535.3,4.2032]
[1754268464262,0.22829896,3536.5,3535.3,3.2078]
[1754268464461,0.99654792,3537.1,3536.4,3.2078]
[1754268464659,0.5928,3536.9,3536.2,3.2078]
[1754268464963,20.35763543,3537.0,3536.8,0.0089]
[1754268464964,20.209,3537.0,3536.8,0.0089]
[1754268465261,0.5928,3537.9,3537.0,0.56539]
[1754268465462,0.16246592,3537.8,3537.6,3.7731]
[1754268465666,20.39346592,3537.7,3537.6,3.7731]
[1754268466062,0.16246592,3537.7,3537.6,3.7731]
[1754268466265,0.2243,3538.0,3537.9,0.56525]
[1754268466563,2.44e-06,3538.0,3537.9,0.56525]
[1754268466864,0.00496239,3539.0,3538.9,0.56509]
[1754268467067,20.28496239,3539.0,3538.9,3.77289]
[1754268467366,0.59776239,3539.0,3538.9,3.77289]
[1754268467666,2.39e-06,3539.0,3538.9,3.77289]
[1754268467869,3.82302663,3540.4,3538.9,3.77289]
[1754268467870,0.99654792,3540.7,3540.5,0.56484]
[1754268468169,20.9048,3540.9,3540.3,3.2078]
[1754268468365,1.0,3541.0,3540.4,0.56485]
[1754268468560,1.5928,3541.0,3540.9,0.56477]
[1754268468763,0.22091,3541.0,3540.9,3.77257]
[1754268468956,3.2078,3541.9,3541.8,0.56463]
[1754268468957,0.99654792,3541.9,3541.8,0.56463]
[1754268469164,0.99654792,3541.9,3540.4,3.2078]
[1754268469165,0.5928,3541.7,3540.4,3.2078]
[1754268469365,1.0743,3540.9,3540.4,3.2078]
[1754268469568,0.56472,3541.3,3540.4,3.2078]
[1754268469569,0.5928,3541.3,3540.5,0.56484]
[1754268469769,0.99945596,3541.4,3541.2,3.2078]
[1754268470064,0.99945596,3541.8,3541.5,0.56467]
[1754268470270,1.75795589,3542.8,3542.6,0.5645]
[1754268470461,0.29855589,3542.8,3542.7,3.04892053]
[1754268470768,1.98845679,3543.4,3542.7,3.04892053]
[1754268471068,2.98845679,3544.0,3543.9,0.56429]
[1754268471271,0.3132,3544.0,3543.9,44.48309]
[1754268471465,1.98845679,3544.3,3543.9,65.01109]
[1754268471765,1.6385,3544.5,3543.9,3.2078]
[1754268471965,0.56426,3544.1,3543.5,3.2078]
[1754268472164,0.5928,3543.7,3543.5,3.2078]
[1754268472364,0.5928,3543.6,3543.5,3.2078]
[1754268472558,1.2022,3543.6,3543.5,3.2078]
[1754268472759,1.6671,3543.6,3543.5,3.2078]
[1754268472964,0.5928,3544.3,3543.5,3.2078]
[1754268473165,0.5928,3544.3,3542.7,40.711]
[1754268473166,0.6094,3544.5,3543.9,3.2078]
[1754268473365,1.6671,3544.0,3543.3,3.2078]
[1754268473562,0.56429,3543.9,3543.3,3.2078]
[1754268473768,0.56447,3542.8,3542.5,3.2078]
[1754268473964,1.0577,3542.9,3542.5,3.2078]
[1754268473965,1.6671,3542.6,3542.5,3.2078]
[1754268474666,1.6671,3542.4,3541.7,3.2078]
[1754268474863,1.2022,3541.9,3541.3,3.2078]
[1754268475169,0.56464,3541.7,3541.3,3.2078]
[1754268475359,1.2022,3541.9,3541.3,3.2078]
[1754268475668,1.2022,3541.8,3541.7,3.2078]
[1754268475869,0.5928,3541.8,3541.7,3.2078]
[1754268476059,1.6671,3541.8,3541.7,3.2078]
[1754268476667,0.5928,3541.8,3541.7,3.2078]
[1754268476867,0.6094,3542.2,3541.7,3.2078]
[1754268477170,4.69135178,3543.1,3540.9,1.01667632]
[1754268477171,0.5928,3542.7,3542.1,3.2078]
[1754268477364,0.5645,3542.6,3542.5,3.2078]
[1754268477569,1.6671,3542.6,3542.5,3.2078]
[1754268477766,1.2022,3542.6,3542.5,3.2078]
[1754268478071,1.6671,3542.6,3542.5,3.2078]
[1754268478973,1.6671,3542.6,3542.1,3.2078]
[1754268479270,1.6671,3543.0,3542.1,3.2078]
[1754268479462,1.6671,3542.2,3541.6,3.2078]
[1754268479664,1.6671,3542.1,3541.6,3.2078]
[1754268479869,1.6671,3542.0,3541.7,3.2078]
[1754268480068,1.6671,3542.0,3541.2,3.2078]
[1754268480270,2.23174,3541.8,3541.2,3.2078]
[1754268480458,1.2022,3541.5,3540.9,1.58143632]
[1754268480658,3.2078,3542.3,3541.3,3.2078]
[1754268480864,1.0743,3542.8,3542.1,0.4862]
[1754268481067,1.6671,3543.0,3542.3,3.2078]
[1754268481268,1.2022,3542.9,3542.3,3.2078]
[1754268481473,1.6671,3542.9,3542.3,3.2078]
[1754268481666,1.6671,3542.9,3542.5,0.56451]
[1754268481864,1.6671,3542.9,3542.1,0.4862]
[1754268481865,0.56452,3542.6,3541.9,3.2078]
[1754268482167,1.6671,3541.4,3540.9,1.50287632]
[1754268482373,0.56464,3541.8,3541.0,0.56476]
[1754268482673,1.2022,3541.8,3541.6,0.4862]
[1754268482869,1.2022,3541.9,3541.7,0.4862]
[1754268483069,1.6671,3542.2,3541.5,3.2078]
[1754268483373,3.2078,3541.9,3541.1,3.2078]
[1754268483578,0.56468,3541.6,3541.1,3.2078]
[1754268483776,0.56466,3541.7,3541.1,3.2078]
[1754268483970,0.56466,3541.7,3540.9,1.58144632]
[1754268483971,1.2022,3541.0,3540.9,1.01667632]
[1754268484176,4.8749,3541.5,3541.0,0.56476]
[1754268484377,1.6671,3541.4,3541.2,3.2078]
[1754268484676,1.6671,3541.9,3541.3,0.4862]
[1754268484876,0.56458,3542.2,3541.2,3.77252]
[1754268485064,2.23169,3542.1,3541.2,3.2078]
[1754268485369,1.2022,3541.8,3541.2,3.2078]
[1754268485565,0.4649,3541.6,3541.2,3.2078]
[1754268485771,0.56462,3541.9,3541.2,3.2078]
[1754268485971,0.56468,3541.5,3541.2,3.2078]
[1754268486174,1.6671,3541.3,3541.2,3.2078]
[1754268486676,1.6671,3541.3,3540.9,1.01667632]
[1754268486677,0.4649,3541.3,3540.9,1.01667632]
[1754268486870,0.56468,3541.5,3540.9,1.01667632]
[1754268487072,1.2022,3541.2,3540.9,1.01667632]
[1754268487275,1.6671,3541.5,3540.9,1.01667632]
[1754268487471,3.2078,3541.6,3540.9,1.01667632]
[1754268487676,1.6671,3541.5,3540.9,1.01667632]
[1754268487873,1.2022,3541.4,3540.9,1.01667632]
[1754268488065,1.6671,3541.5,3540.9,1.58144632]
[1754268488268,0.56466,3541.7,3541.3,3.2078]
[1754268488269,1.6671,3541.4,3541.3,3.2078]
[1754268489572,4.8749,3541.4,3540.9,1.01667632]
[1754268489777,3.6727,3541.0,3539.6,3.2078]
[1754268489971,3.6727,3541.0,3539.7,0.56496]
[1754268489972,3.2078,3540.6,3539.7,0.56496]
[1754268490276,0.4649,3540.2,3539.6,3.77278]
[1754268490484,0.4649,3539.9,3539.2,4.37014]
[1754268490680,0.5928,3539.8,3539.2,3.77284]
[1754268490882,1.0577,3539.8,3539.2,3.77284]
[1754268491074,1.15782,3539.4,3538.7,3.2078]
[1754268491284,1.0577,3539.0,3538.7,3.2078]
[1754268491579,1.0577,3539.0,3538.1,0.4862]
[1754268491580,0.4649,3538.8,3538.5,1.76035]
[1754268491875,0.5928,3538.3,3537.9,1.01753841]
[1754268492076,3.2078,3539.0,3538.0,1.4431299]
[1754268492077,3.77301,3538.2,3538.0,1.4431299]
[1754268492281,3.77301,3538.2,3537.5,2.00565743]
[1754268492282,0.56529,3537.7,3537.5,2.00565743]
[1754268492479,0.1975,3537.4,3537.2,2.00565743]
[1754268492780,3.4053,3537.3,3537.2,2.00565743]
[1754268492982,0.1975,3537.2,3537.1,2.00565743]
[1754268493177,0.1975,3537.2,3537.0,2.00565743]
[1754268493370,0.1975,3537.2,3536.8,1.1952]
[1754268493371,0.1975,3537.1,3536.8,3.20085743]
[1754268493577,0.1975,3537.2,3536.9,0.5973]
[1754268493778,0.352,3537.0,3536.9,0.5973]
[1754268494079,0.0883,3537.0,3536.6,1.4567]
[1754268494274,0.0883,3537.0,3536.8,0.74]
[1754268494275,0.352,3537.0,3536.8,0.74]
[1754268494480,0.352,3537.0,3536.9,0.74]
[1754268494882,0.2637,3537.0,3536.9,0.74]
[1754268495181,3.2078,3537.3,3537.0,0.5654]
[1754268495384,0.2637,3537.7,3537.0,1.9862]
[1754268495572,0.2637,3537.7,3537.1,0.56538]
[1754268495774,3.2078,3538.5,3538.1,0.56522]
[1754268495980,3.2078,3538.9,3538.3,1.4567]
[1754268496175,3.2078,3538.9,3538.2,2.02191]
[1754268496477,0.2637,3538.8,3538.6,0.74]
[1754268496674,3.2078,3538.9,3538.6,0.5295]
[1754268496877,3.2078,3538.9,3538.7,0.74]
[1754268497080,3.2078,3538.9,3538.8,0.74]
[1754268497386,45.37335178,3539.8,3538.7,0.7167]
[1754268497387,3.2078,3539.9,3538.9,1.4567]
[1754268497588,3.2078,3539.9,3538.6,1.41286]
[1754268497589,3.2078,3539.9,3539.2,1.4567]
[1754268497789,0.2637,3540.0,3539.5,3.2078]
[1754268497981,0.91694,3540.0,3539.4,1.4567]
[1754268498182,0.2637,3539.6,3539.4,1.4567]
[1754268498381,0.65328,3539.7,3537.8,1.41316]
[1754268498382,0.0883,3539.5,3539.1,0.56506]
[1754268498587,3.4715,3539.9,3539.3,2.02172]
[1754268498796,3.4715,3539.9,3539.3,1.4567]
[1754268498985,3.4715,3539.9,3538.8,0.74]
[1754268498986,0.2637,3539.7,3538.8,0.74]
[1754268499284,3.2078,3539.5,3539.1,0.56506]
[1754268499489,3.2078,3539.5,3539.4,0.74]
[1754268499679,0.2637,3539.8,3539.5,1.4567]
[1754268499876,3.2961,3539.9,3539.3,0.56503]
[1754268499877,3.2078,3539.9,3539.7,1.4567]
[1754268500088,3.2078,3539.9,3539.2,1.9862]
[1754268500384,0.352,3540.3,3539.5,1.2462]
[1754268500576,0.91590733,3540.3,3539.7,0.74]
[1754268500776,0.65220733,3540.3,3539.4,3.2078]
[1754268501081,0.65220733,3540.3,3540.2,0.56489]
[1754268501280,0.65220733,3540.3,3540.2,2.55109]
[1754268501484,0.65220733,3540.3,3540.2,5.75889]
[1754268501686,1.0062819,3540.4,3540.3,0.5295]
[1754268501883,1.49089932,3540.4,3540.3,0.5295]
[1754268502079,2.15925069,3540.4,3540.3,0.5295]
[1754268502279,1.50742202,3540.4,3540.3,1.9862]
[1754268502589,1.98845679,3540.5,3540.4,0.5295]
[1754268502785,1.98845679,3540.6,3540.2,3.2078]
[1754268502985,0.91507549,3540.5,3540.2,3.7373]
[1754268503185,1.50635891,3540.3,3540.2,5.194]
[1754268503382,2.1577344,3540.3,3540.2,5.194]
[1754268503583,0.65137549,3540.3,3540.2,5.194]
[1754268503885,1.65558523,3540.3,3540.2,5.75887]
[1754268504086,0.65137549,3540.3,3540.2,5.194]
[1754268504390,1.00420974,3540.3,3540.2,5.194]
[1754268505181,0.65137549,3540.3,3540.2,3.7373]
[1754268505486,1.00420974,3540.6,3540.5,0.56484]
[1754268505687,0.65024001,3540.6,3540.5,0.5295]
[1754268505888,0.5648,3540.8,3540.5,0.5295]
[1754268506387,0.65018548,3540.9,3540.7,0.7167]
[1754268506388,1.47866548,3540.9,3540.7,0.7167]
[1754268506594,0.91388548,3540.8,3540.7,0.7167]
[1754268506789,0.91388548,3540.8,3540.2,3.77268]
[1754268506790,0.2637,3540.8,3540.2,3.9245]
[1754268506993,0.2637,3540.8,3540.4,0.56485]
[1754268507197,4.2078,3541.0,3540.4,0.56486]
[1754268507387,4.2078,3541.0,3540.5,0.74]
[1754268507692,1.0,3541.0,3540.9,1.9862]
[1754268508488,1.0,3541.0,3540.7,0.74]
[1754268508489,0.352,3540.8,3540.7,0.74]
[1754268508895,0.56481,3540.7,3540.4,0.7167]
[1754268509095,0.352,3540.6,3540.5,0.74]
[1754268510092,0.5648,3540.8,3540.5,1.9862]
[1754268510296,0.65311,3540.7,3540.6,0.74]
[1754268510802,0.91681,3540.7,3540.6,0.74]
[1754268511995,0.91681,3540.7,3540.6,1.4567]
[1754268512194,0.91681,3540.7,3540.6,1.9862]
[1754268512195,0.82851,3540.7,3540.6,1.9862]
[1754268512392,0.82851,3540.7,3540.6,1.4567]
[1754268512590,0.91681,3540.7,3540.6,0.74]
[1754268512900,0.91687,3540.3,3540.2,1.4567]
[1754268513094,1.41201,3540.8,3539.8,1.09444]
[1754268513095,0.0883,3540.7,3540.0,3.2078]
[1754268513400,0.0883,3540.7,3539.9,0.74]
[1754268513401,0.8286,3540.1,3539.9,1.4567]
[1754268513600,1.41201,3540.8,3538.2,4.69135178]
[1754268513601,3.2078,3541.4,3540.8,0.56479]
[1754268513807,0.2637,3541.7,3540.9,1.9862]
[1754268514005,3.2078,3541.8,3540.9,1.9862]
[1754268514006,0.56469,3541.5,3540.9,1.4567]
[1754268514209,3.2078,3541.8,3541.0,1.9862]
[1754268514505,0.4912,3541.9,3541.3,0.56471]
[1754268514701,0.4912,3541.9,3541.7,0.5295]
[1754268514901,0.56463,3541.8,3541.7,0.5295]
[1754268515108,0.56463,3541.9,3541.4,0.5647]
[1754268515303,0.5647,3541.4,3541.3,0.5295]
[1754268515501,0.56467,3541.6,3541.5,1.4567]
[1754268515702,1.14417,3541.6,3541.5,1.4567]
[1754268515905,0.56473,3541.2,3541.1,1.4567]
[1754268516107,1.05593,3541.2,3541.1,1.4567]
[1754268516507,0.56478,3540.9,3540.8,0.5295]
[1754268516712,1.05598,3540.9,3540.7,4.6645]
[1754268516912,0.4912,3541.5,3540.9,0.5295]
[1754268517314,3.699,3541.5,3540.9,0.5295]
[1754268517513,0.4912,3541.4,3541.1,0.5295]
[1754268517711,0.56474,3541.2,3541.1,0.5295]
[1754268517914,0.56478,3540.9,3540.8,0.5295]
[1754268518109,0.56477,3541.0,3540.8,0.5295]
[1754268518316,0.56477,3541.0,3540.9,1.9862]
[1754268519217,0.56475,3541.1,3540.9,1.9862]
[1754268519407,1.05595,3541.1,3540.9,1.9862]
[1754268519607,1.05595,3541.1,3540.8,1.9862]
[1754268519808,1.05595,3541.1,3541.0,1.4567]
[1754268520010,3.2961,3541.5,3540.9,0.56477]
[1754268520317,0.56475,3541.1,3540.7,3.7726]
[1754268520511,0.56475,3541.1,3541.0,1.9862]
[1754268520706,1.05595,3541.1,3541.0,1.4567]
[1754268520911,0.56479,3540.9,3540.7,3.2078]
[1754268521113,1.05599,3540.9,3540.8,1.4567]
[1754268521306,0.4912,3540.8,3540.6,0.5295]
[1754268521612,0.4912,3540.8,3540.7,1.9862]
[1754268522007,0.56481,3540.7,3540.2,0.56489]
[1754268522220,0.4912,3540.6,3540.5,1.9862]
[1754268522515,0.6989,3541.0,3540.5,1.9862]
[1754268522718,0.65301,3541.4,3540.6,1.2695]
[1754268523015,0.56473,3541.2,3540.7,1.4567]
[1754268523317,3.86086,3541.0,3540.9,0.74]
[1754268523714,3.2961,3541.0,3540.9,0.74]
[1754268523913,3.6895,3541.0,3540.9,1.4595]
[1754268524218,0.4817,3541.2,3540.9,3.77258]
[1754268524419,0.4817,3541.2,3541.1,0.7195]
[1754268524612,0.4817,3541.2,3541.1,1.9878]
[1754268525411,0.4817,3541.2,3541.1,1.4549]
[1754268525720,0.5573,3541.2,3541.1,1.4549]
[1754268526919,0.4817,3541.2,3541.1,1.9878]
[1754268527914,0.5647,3541.4,3541.0,0.56475]
[1754268528211,1.0464,3541.4,3541.2,0.5329]
[1754268528519,0.4817,3541.4,3541.3,1.9878]
[1754268529121,23.8818,3541.6,3541.3,1.9878]
[1754268529316,24.3635,3541.6,3541.4,1.9878]
[1754268529522,24.52208,3541.6,3541.5,1.4549]
[1754268529721,3.2834,3541.6,3541.5,1.4549]
[1754268530122,21.1407,3541.6,3541.5,1.9878]
[1754268530618,0.4817,3543.0,3542.2,0.7354]
[1754268530824,3.2078,3542.6,3542.2,0.7354]
[1754268531128,0.4817,3542.3,3542.2,0.7354]
[1754268531327,1.26672,3541.9,3541.6,1.2524]
[1754268531618,3.2078,3542.2,3541.4,3.2078]
[1754268531818,3.77238,3542.2,3542.0,1.9878]
[1754268532121,1.04624,3542.4,3542.3,1.4549]
[1754268532422,1.18180666,3542.4,3542.3,1.4549]
[1754268532624,1.04624,3542.4,3542.3,1.4549]
[1754268533127,0.56458,3542.2,3541.9,1.4549]
[1754268533422,0.4817,3542.3,3541.9,1.9878]
[1754268533620,0.4817,3542.3,3541.8,3.2078]
[1754268533923,0.56456,3542.3,3542.1,1.4549]
[1754268534123,0.56455,3542.4,3542.2,0.5329]
[1754268534322,0.56455,3542.4,3542.3,1.9878]
[1754268534720,0.4817,3542.5,3542.4,1.9878]
[1754268534721,1.04623,3542.5,3542.4,1.9878]
[1754268534918,1.18174937,3542.5,3542.4,1.9878]
[1754268535118,1.04623,3542.5,3542.4,1.9878]
[1754268535321,1.12183,3542.5,3542.4,1.4549]
[1754268535623,0.700038,3542.5,3542.4,1.4549]
[1754268535821,0.700038,3542.5,3542.4,1.9878]
[1754268536024,0.70003211,3542.5,3542.4,1.9878]
[1754268536219,0.56453,3542.5,3542.4,1.9878]
[1754268536424,24.41131,3542.6,3542.4,1.9878]
[1754268536620,3.2078,3542.6,3542.5,1.9878]
[1754268537920,1.04619,3542.8,3542.6,1.9878]
[1754268538221,21.17047,3542.9,3542.8,0.7195]
[1754268538423,0.56445,3543.0,3542.5,0.56451]
[1754268538630,3.2834,3543.1,3542.8,0.56447]
[1754268538631,23.8098,3543.1,3542.8,0.56447]
[1754268538825,4.25393,3543.1,3542.8,0.5329]
[1754268539026,4.25393,3543.1,3542.5,0.56451]
[1754268539216,0.56445,3543.0,3542.6,1.9878]
[1754268539423,3.6895,3543.1,3542.3,3.2078]
[1754268539424,0.56447,3542.9,3542.7,1.4549]
[1754268539622,3.2078,3543.1,3542.3,4.6627]
[1754268539819,0.4817,3543.0,3542.4,0.5329]
[1754268540022,3.2078,3543.1,3542.3,3.2078]
[1754268540219,0.56454,3542.4,3542.3,3.2078]
[1754268540424,0.56454,3542.4,3542.0,0.5329]
[1754268540425,0.4817,3542.5,3541.8,1.9878]
[1754268540720,1.04622,3542.5,3542.2,1.9878]
[1754268540928,0.4817,3542.5,3541.7,3.2078]
[1754268541429,0.56461,3542.0,3541.8,1.9878]
[1754268541631,0.56459,3542.1,3541.8,1.9878]
[1754268542026,0.56459,3542.1,3542.0,1.4549]
[1754268542224,3.2078,3542.6,3542.1,1.4549]
[1754268542427,0.56454,3542.5,3542.3,1.4549]
[1754268542624,0.56454,3542.5,3542.1,0.56458]
[1754268542625,1.04624,3542.5,3542.4,1.4549]
[1754268542826,0.5573,3542.8,3542.4,1.9878]
[1754268543025,0.56448,3542.8,3542.5,1.9878]
[1754268543322,20.574,3542.9,3542.4,1.9878]
[1754268543323,0.56452,3542.5,3542.4,1.9878]
[1754268543528,0.56457,3542.2,3542.1,1.9878]
[1754268543830,0.56453,3542.5,3541.7,3.2078]
[1754268544033,0.56453,3542.5,3542.3,1.4549]
[1754268544325,0.56453,3542.5,3542.4,1.9878]
[1754268544526,20.569,3542.9,3542.5,0.7354]
[1754268544724,0.56451,3542.6,3542.5,1.9878]
[1754268545430,1.04621,3542.6,3542.5,1.9878]
[1754268545933,0.4817,3542.6,3541.9,3.77242]
[1754268546127,1.04622,3542.5,3542.4,1.4549]
[1754268546329,1.82393,3542.5,3542.1,0.7354]
[1754268546532,1.12183,3542.5,3542.3,1.9878]
[1754268546731,1.12183,3542.5,3542.4,1.4549]
[1754268546930,0.4817,3542.5,3542.4,1.9878]
[1754268547131,0.5645,3542.7,3542.3,0.5329]
[1754268547333,0.56452,3542.6,3542.5,1.4549]
[1754268547529,1.2594,3542.6,3542.5,0.7195]
[1754268547929,1.2594,3542.6,3542.5,2.01942]
[1754268548132,1.2594,3542.6,3541.9,3.2078]
[1754268548133,3.2078,3542.6,3541.9,3.2078]
[1754268548329,0.5573,3542.1,3541.5,3.2078]
[1754268548634,1.2594,3541.9,3541.7,0.7354]
[1754268548835,0.7021,3541.9,3541.7,1.4549]
[1754268549031,0.5573,3541.8,3541.7,1.4549]
[1754268549936,0.4817,3541.8,3541.7,1.9878]
[1754268550137,0.0536,3542.1,3541.7,1.9878]
[1754268550434,0.7021,3542.4,3541.6,1.9878]
[1754268550735,0.7021,3542.4,3541.7,1.9878]
[1754268550736,20.523,3542.4,3541.7,1.9878]
[1754268550929,20.523,3542.4,3542.1,0.56457]
[1754268551130,0.4652,3542.3,3542.2,1.4549]
[1754268552034,0.4652,3542.3,3542.2,5.1956]
[1754268552230,3.2614,3543.0,3542.3,1.41139]
[1754268552434,20.504,3542.9,3542.3,0.7195]
[1754268552636,20.9792,3542.9,3542.8,0.56446]
[1754268552834,0.4652,3542.9,3542.8,1.83276]
[1754268553036,0.4652,3543.3,3543.2,1.2998]
[1754268553230,0.4652,3543.3,3543.2,1.4549]
[1754268553231,21.10855231,3543.3,3543.2,1.4549]
[1754268553431,20.9732,3543.3,3543.2,1.4549]
[1754268553637,0.4652,3543.3,3543.2,1.4549]
[1754268553831,0.4652,3543.3,3543.2,2.01931]
[1754268554131,0.4652,3543.3,3543.2,1.9753]
[1754268554942,20.9712,3543.3,3543.2,1.9753]
[1754268556437,20.497,3543.4,3543.3,0.56439]
[1754268556636,41.3681,3543.6,3543.3,0.56439]
[1754268556637,40.7153,3543.6,3543.5,0.56436]
[1754268556932,61.139,3543.6,3543.5,1.9729]
[1754268557132,20.9842,3543.6,3543.5,1.9729]
[1754268557432,0.6933,3543.9,3543.6,1.9729]
[1754268557433,20.468,3543.7,3543.6,1.9729]
[1754268557637,0.4619,3543.9,3543.5,0.7413]
[1754268557937,0.4619,3543.9,3543.4,3.2078]
[1754268557938,1.4619,3544.0,3543.9,0.7413]
[1754268558138,1.4619,3544.0,3543.9,2.5372]
[1754268558339,1.0,3544.0,3543.9,2.5372]
[1754268558829,1.0,3544.0,3543.9,5.745]
[1754268559336,0.899,3544.2,3544.1,2.53717]
[1754268559532,0.899,3544.6,3544.5,1.9729]
[1754268559737,0.899,3544.8,3544.6,0.56419]
[1754268559932,0.56413,3545.0,3544.8,1.9729]
[1754268560137,1.33027919,3544.9,3544.8,1.2316]
[1754268560437,0.13517919,3544.9,3544.8,1.2316]
[1754268560635,0.13517919,3544.9,3544.8,1.9729]
[1754268561340,2.65821,3545.1,3545.0,0.7413]
[1754268561640,2.79328572,3545.1,3545.0,1.4525]
[1754268561840,2.79328572,3545.1,3545.0,1.9729]
[1754268562035,0.56415,3544.9,3544.6,1.2316]
[1754268562237,1.75925,3544.9,3544.8,1.9729]
[1754268562535,1.5923,3545.1,3544.8,1.2617]
[1754268562536,0.56413,3545.0,3544.8,1.2617]
[1754268562744,0.56413,3545.0,3544.9,1.9729]
[1754268562930,0.69916804,3545.0,3544.9,1.9729]
[1754268563235,1.89426804,3545.0,3544.9,1.9729]
[1754268563635,1.16106804,3545.0,3544.9,1.9729]
[1754268563838,1.33013804,3545.0,3544.9,1.9729]
[1754268564239,0.899,3545.1,3545.0,0.7413]
[1754268564542,1.03396888,3545.1,3545.0,1.9729]
[1754268564840,1.59807888,3545.1,3544.9,0.7413]
[1754268565046,0.13496888,3545.0,3544.9,1.9729]
[1754268565648,0.13496888,3545.0,3544.9,2.53704]
[1754268565944,0.899,3545.1,3545.0,1.9729]
[1754268566240,0.56397,3546.0,3544.9,1.41035]
[1754268566444,21.52897,3546.0,3545.5,0.5204]
[1754268566639,21.1372,3546.3,3545.5,3.2078]
[1754268566845,3.2078,3546.4,3545.6,1.9729]
[1754268567138,3.2078,3546.8,3546.7,1.9729]
[1754268567343,0.5639,3546.5,3546.3,0.7413]
[1754268567540,2.54938,3546.6,3546.4,1.2617]
[1754268567736,3.2078,3546.8,3546.7,0.7413]
[1754268568042,3.2078,3546.8,3546.7,1.2617]
[1754268568438,3.2078,3546.8,3546.1,3.2078]
[1754268568642,1.9855,3546.5,3545.8,1.2617]
[1754268568842,2.54939,3546.5,3545.8,0.56399]
[1754268569042,1.12292,3546.3,3546.2,1.2617]
[1754268569238,0.559,3546.3,3546.2,1.2617]
[1754268569444,0.56391,3546.4,3545.5,3.2078]
[1754268569645,0.56389,3546.5,3546.0,1.9729]
[1754268569838,0.56392,3546.3,3545.9,3.2078]
[1754268570042,1.2922,3546.1,3546.0,1.4525]
[1754268570242,0.56394,3546.2,3545.9,3.2078]
[1754268570445,0.56392,3546.3,3546.2,1.4525]
[1754268570651,0.559,3546.7,3545.9,3.2078]
[1754268570652,1.0,3547.0,3546.6,0.7413]
[1754268570844,1.0,3547.0,3546.7,1.9729]
[1754268571145,1.0,3547.0,3546.5,3.77168]
[1754268571343,1.0,3547.0,3546.8,0.7112]
[1754268571648,1.56381,3547.0,3546.7,1.9729]
[1754268571837,1.56381,3547.0,3546.9,1.9729]
[1754268572044,1.0,3547.0,3546.9,1.9729]
[1754268572237,1.0,3547.0,3546.6,0.7413]
[1754268572238,0.56382,3546.9,3546.6,0.7413]
[1754268572438,0.559,3546.7,3546.6,1.9729]
[1754268572845,0.7332,3546.9,3546.6,1.9729]
[1754268573052,1.0,3547.0,3546.6,1.9729]
[1754268573252,2.29701,3547.0,3546.6,3.2078]
[1754268573448,2.54934,3546.8,3546.6,3.2078]
[1754268573650,1.9855,3546.6,3545.7,0.5204]
[1754268573945,1.0,3547.0,3546.7,1.4525]
[1754268574148,1.56382,3547.0,3546.5,3.77168]
[1754268574344,1.56382,3547.0,3546.9,1.9729]
[1754268574543,1.56382,3547.0,3546.5,5.1807]
[1754268574544,3.54932,3547.0,3546.5,5.1807]
[1754268574748,1.9855,3546.9,3546.5,3.2078]
[1754268574946,1.25713,3546.9,3546.8,0.7413]
[1754268575143,1.25713,3546.9,3546.7,1.2316]
[1754268575144,0.56384,3546.8,3546.5,3.2078]
[1754268575448,1.9855,3546.6,3546.5,3.2078]
[1754268575748,0.56384,3546.8,3545.8,5.1807]
[1754268575749,1.4265,3546.2,3545.8,5.1807]
[1754268575946,1.9855,3546.1,3545.9,1.9729]
[1754268576145,0.559,3546.0,3545.9,1.9729]
[1754268576449,1.2922,3546.0,3545.9,1.9729]
[1754268577151,1.9855,3545.9,3545.5,2.53694]
[1754268577346,1.2523,3545.6,3545.4,3.2078]
[1754268577556,0.6933,3545.3,3545.0,3.7282]
[1754268577742,3.2078,3546.0,3545.6,1.4525]
[1754268577743,1.2922,3545.9,3545.6,1.4525]
[1754268577947,1.2922,3545.8,3545.7,1.9729]
[1754268578356,1.9855,3545.8,3545.7,0.7413]
[1754268578554,0.56398,3545.9,3545.1,3.2078]
[1754268578754,0.56401,3545.7,3545.4,1.9729]
[1754268578949,0.6933,3545.4,3545.2,0.7413]
[1754268579152,1.9855,3545.3,3545.2,0.7413]
[1754268579453,0.56406,3545.4,3545.1,3.2078]
[1754268579655,1.9855,3545.2,3545.1,3.2078]
[1754268580052,1.9855,3544.9,3544.7,3.2078]
[1754268580251,2.54965,3544.9,3544.3,5.74493]
[1754268580453,0.7332,3544.8,3544.3,4.4695]
[1754268580650,1.9855,3544.7,3544.3,3.2078]
[1754268580854,1.2523,3544.6,3544.3,3.7282]
[1754268581054,1.2922,3544.5,3544.4,1.9729]
[1754268581250,3.2078,3544.8,3544.5,0.5642]